bitfinex/quotes_ETHUSD_20240722
["timestamp","ask_amount","ask_price","bid_price","bid_amount"]
[1721613778505,2.83198,3531.1,3530.2,1.566826]
[1721613778506,0.04070323,3531.0,3530.4,2.83251]
[1721613778700,0.59227804,3531.2,3530.5,2.86069223]
[1721613779692,5.89322804,3531.3,3530.7,2.83229]
[1721613780030,0.59227804,3531.3,3530.8,0.02826539]
[1721613780316,3.42403804,3531.4,3530.8,0.02826539]
[1721613781425,3.42409804,3531.3,3530.8,0.02826539]
[1721613782098,1.96725595,3531.5,3530.8,0.02826539]
[1721613782099,0.59227804,3531.4,3530.8,0.02826539]
[1721613782438,0.59227804,3531.4,3530.6,5.09787]
[1721613782439,3.59227804,3531.5,3531.0,2.83205]
[1721613782588,0.59227804,3531.5,3531.0,2.83205]
[1721613782792,3.0,3531.5,3531.1,0.02825856]
[1721613783102,3.0,3531.5,3531.3,2.83181]
[1721613783409,0.59227804,3531.7,3531.4,0.02825173]
[1721613783801,0.59227804,3531.7,3531.3,2.83181]
[1721613784225,3.88609647,3531.9,3531.3,2.83181]
[1721613784226,0.59227804,3531.8,3531.3,2.83181]
[1721613784613,0.59227804,3531.8,3531.1,2.83197]
[1721613784919,0.59227804,3531.7,3531.2,0.02825628]
[1721613786212,3.59227804,3531.7,3531.2,0.02825628]
[1721613786528,0.59227804,3531.7,3531.2,0.02825628]
[1721613786902,0.59227804,3531.7,3531.2,2.86012628]
[1721613787092,0.59227804,3531.7,3531.3,2.83181]
[1721613787291,0.59227804,3531.7,3531.4,0.02825173]
[1721613789393,0.59227804,3531.7,3531.1,2.83193]
[1721613789599,0.59227804,3531.7,3531.5,0.02816735]
[1721613789906,0.59227804,3531.7,3531.1,2.83193]
[1721613789907,0.59227804,3531.7,3531.6,0.02816508]
[1721613790215,0.59227804,3531.7,3531.1,2.83193]
[1721613790414,0.59227804,3531.7,3531.6,0.02816508]
[1721613790716,0.59227804,3531.8,3531.6,0.02816508]
[1721613791031,0.59227804,3531.8,3531.3,2.8318]
[1721613791205,0.59227804,3531.8,3531.7,0.0281628]
[1721613791413,0.59249102,3531.8,3531.3,2.8318]
[1721613791737,3.88609647,3531.9,3531.3,2.8318]
[1721613791911,0.5924827,3531.7,3531.4,0.02816963]
[1721613792229,3.88609647,3531.9,3531.4,2.85989963]
[1721613792230,0.5924827,3531.8,3531.4,2.85989963]
[1721613792431,0.5924827,3531.8,3531.5,2.83165]
[1721613792665,0.5924827,3532.1,3531.6,2.83157]
[1721613792931,2.277,3532.3,3531.6,2.85973508]
[1721613792932,2.8694827,3532.3,3531.6,2.85973508]
[1721613793277,2.8694827,3532.3,3531.9,2.83132]
[1721613793634,0.5924827,3532.3,3532.0,2.85933574]
[1721613793816,0.88609647,3532.5,3532.0,2.85933574]
[1721613793817,0.5924827,3532.4,3532.0,2.85933574]
[1721613794018,0.5924827,3532.4,3532.0,0.02811574]
[1721613794199,0.5924827,3532.4,3531.7,2.83148]
[1721613794403,0.5924827,3532.4,3532.1,0.02811024]
[1721613794611,0.5924827,3532.4,3531.7,2.83148]
[1721613794818,0.5924827,3532.4,3532.2,0.02810797]
[1721613795033,0.5924827,3532.4,3531.7,2.83148]
[1721613795240,0.5924827,3532.4,3531.9,2.83127]
[1721613795542,0.5924827,3532.4,3532.0,0.02811252]
[1721613796411,0.5924827,3532.4,3532.0,2.85935252]
[1721613796943,0.5924827,3532.4,3532.1,2.83117]
[1721613797143,3.5924827,3532.5,3532.2,2.83108]
[1721613797361,0.5924827,3532.6,3532.3,2.83099]
[1721613797560,3.58893729,3532.9,3532.3,2.83099]
[1721613797561,0.5924827,3532.9,3532.5,2.83085]
[1721613797854,0.88609647,3533.0,3532.5,2.83085]
[1721613797855,0.5924827,3533.0,3532.5,2.83085]
[1721613798051,0.5924827,3533.0,3532.4,0.02804066]
[1721613798052,0.5924827,3533.1,3533.0,2.83045]
[1721613798213,0.5924827,3533.1,3532.6,1.06903611]
[1721613798214,0.5924827,3533.4,3533.1,2.83037]
[1721613798412,0.5924827,3533.5,3533.1,2.83037]
[1721613798659,0.5924827,3533.7,3533.2,0.02780136]
[1721613798810,1.38221935,3533.7,3533.2,0.02780136]
[1721613799012,1.38221935,3533.7,3533.1,2.83037]
[1721613799312,0.78973665,3533.7,3533.2,0.02780136]
[1721613799614,0.78973665,3533.7,3533.1,2.83037]
[1721613799615,3.78973665,3533.7,3533.1,2.83037]
[1721613799831,3.78973665,3533.7,3532.9,2.83053]
[1721613800116,3.78973665,3533.7,3533.0,2.85822591]
[1721613800117,0.78973665,3533.7,3533.0,2.85822591]
[1721613800833,2.82997,3533.6,3533.0,0.02780591]
[1721613801043,0.88644566,3533.5,3532.8,2.83054]
[1721613801255,0.88644566,3533.5,3533.1,0.0276276]
[1721613801454,3.71650566,3533.5,3532.6,2.83077]
[1721613801751,0.88644566,3533.5,3532.7,2.83069]
[1721613801944,3.0,3533.6,3532.7,2.8583267]
[1721613802144,3.0,3533.6,3532.9,2.83052]
[1721613802364,3.0,3533.6,3532.8,0.02763443]
[1721613802365,2.83005,3533.5,3532.8,0.02763443]
[1721613802645,1.24569794,3533.5,3533.0,0.02762988]
[1721613802849,3.0,3533.6,3532.9,2.85815215]
[1721613803020,3.0,3533.6,3533.1,0.0276276]
[1721613803223,3.0,3533.6,3532.9,2.83052]
[1721613803421,3.0,3533.6,3533.2,0.02762533]
[1721613803627,3.0,3533.6,3532.8,2.83061]
[1721613803934,4.24567493,3533.6,3532.9,2.83051]
[1721613804110,4.24567493,3533.6,3533.0,0.02762988]
[1721613806416,2.3846,3533.2,3533.0,0.02762988]
[1721613806614,2.83059,3532.9,3532.1,2.83114]
[1721613806842,2.3846,3533.2,3531.6,2.3707]
[1721613806843,2.83048,3533.0,3531.9,2.83132]
[1721613807006,3.521508,3532.9,3531.6,2.3707]
[1721613807212,3.521508,3532.9,3532.2,2.83107]
[1721613807848,3.521508,3532.9,3532.0,2.83117]
[1721613808008,3.521508,3532.9,3532.2,2.83109]
[1721613808009,3.0,3532.8,3532.2,2.83109]
[1721613808210,3.0,3532.8,3532.1,2.83111]
[1721613808413,3.0,3532.8,3532.0,2.83125]
[1721613808652,0.521508,3532.9,3532.2,2.83103]
[1721613809454,0.521508,3532.9,3532.0,2.83125]
[1721613809455,3.352038,3532.9,3532.1,2.83116]
[1721613809664,5.83062,3532.8,3532.1,2.83116]
[1721613809815,2.83062,3532.8,3532.1,2.83116]
[1721613811659,0.521508,3532.9,3532.2,2.83108]
[1721613811862,5.83047,3533.0,3532.2,2.83108]
[1721613812068,2.83053,3532.9,3532.2,2.83108]
[1721613812269,2.83053,3532.9,3531.8,2.83134]
[1721613812565,2.8308,3532.6,3531.8,2.83134]
[1721613813067,8.22032,3532.8,3531.9,2.83132]
[1721613813271,2.8307,3532.7,3531.9,2.83132]
[1721613813728,2.8307,3532.7,3531.9,3.634671]
[1721613814375,5.3897,3532.8,3531.9,3.634671]
[1721613814679,8.22033,3532.8,3532.1,2.83116]
[1721613815746,2.8307,3532.7,3531.9,3.634671]
[1721613816544,2.83077,3532.6,3531.9,3.634671]
[1721613817080,2.83077,3532.6,3531.9,0.803351]
[1721613817785,2.83077,3532.6,3531.9,3.634661]
[1721613817954,8.22032,3532.8,3531.9,3.634661]
[1721613818480,8.22032,3532.8,3532.0,2.83124]
[1721613818980,2.83078,3532.6,3532.1,0.02774042]
[1721613819183,2.83078,3532.6,3531.8,2.83141]
[1721613819383,2.83078,3532.6,3532.2,0.02773814]
[1721613819601,2.83078,3532.6,3531.8,2.83141]
[1721613820194,0.04070323,3532.5,3531.9,0.02774497]
[1721613820397,0.04070323,3532.5,3531.6,5.20226]
[1721613820569,0.04070323,3532.5,3532.0,0.02774269]
[1721613820768,2.83099,3532.4,3531.6,5.20226]
[1721613821099,2.83099,3532.4,3532.1,0.02774042]
[1721613821398,2.83099,3532.4,3531.7,2.83149]
[1721613821570,2.83087,3532.5,3532.2,0.02773814]
[1721613821774,2.83087,3532.5,3531.8,2.83141]
[1721613821975,2.83087,3532.5,3532.3,0.02773586]
[1721613822175,2.83087,3532.5,3531.8,2.83141]
[1721613822861,2.83087,3532.5,3531.9,0.02774497]
[1721613823090,2.83094,3532.4,3531.9,0.02774497]
[1721613823407,2.83094,3532.4,3531.7,2.83148]
[1721613823572,2.83094,3532.4,3532.0,0.02774269]
[1721613823760,2.83094,3532.4,3531.7,2.83148]
[1721613824160,2.83094,3532.4,3531.8,0.02774724]
[1721613825890,5.22482,3532.2,3531.8,0.02774724]
[1721613826286,2.3937,3532.2,3531.5,2.83165]
[1721613826489,2.83094,3532.4,3531.9,0.02777873]
[1721613826700,2.83094,3532.4,3531.6,2.83156]
[1721613827208,2.83094,3532.4,3531.7,0.02778329]
[1721613827577,2.87164323,3532.4,3531.7,0.02778329]
[1721613828014,2.83102,3532.3,3531.7,0.02778329]
[1721613828192,2.9694827,3532.5,3531.7,2.85927329]
[1721613828386,3.0,3532.4,3531.7,2.85927329]
[1721613828824,3.0,3532.4,3531.7,0.02778329]
[1721613829713,2.83103,3532.3,3531.7,0.02778329]
[1721613831315,3.0,3532.4,3531.7,0.02778329]
[1721613831520,0.04070323,3532.2,3531.7,0.02778329]
[1721613831719,0.04070323,3532.2,3530.8,2.4159]
[1721613831720,3.0491827,3532.1,3530.8,2.4159]
[1721613831890,2.83181,3531.4,3530.8,2.4159]
[1721613832107,2.87236323,3531.5,3530.8,2.4159]
[1721613832294,2.83182,3531.3,3530.8,2.4159]
[1721613832731,2.83166,3531.5,3530.8,2.4159]
[1721613833093,3.4239827,3531.7,3530.8,2.4159]
[1721613833094,2.8315,3531.7,3530.8,2.4159]
[1721613833330,2.8315,3531.7,3530.9,3.356899]
[1721613833893,2.83161,3531.6,3530.9,2.83208]
[1721613834097,2.8315,3531.7,3530.8,2.4159]
[1721613834098,2.83166,3531.5,3531.0,0.02687702]
[1721613834520,2.83166,3531.5,3530.8,2.4159]
[1721613834521,2.83166,3531.5,3530.8,5.2481]
[1721613834740,2.8315,3531.7,3531.1,0.02687474]
[1721613834945,2.8315,3531.7,3530.9,2.83212]
[1721613835160,2.8316,3531.6,3531.2,0.02687246]
[1721613835315,2.83166,3531.5,3530.8,2.4159]
[1721613835515,2.83166,3531.5,3531.3,0.02687019]
[1721613835826,2.83166,3531.5,3530.8,2.4159]
[1721613836018,2.83166,3531.5,3531.4,0.02686791]
[1721613836206,3.78618639,3531.5,3530.8,2.4159]
[1721613836410,2.83166,3531.5,3531.4,0.02686791]
[1721613836641,2.83198,3531.1,3530.4,5.2352]
[1721613837612,2.83178,3531.4,3530.5,2.83245]
[1721613837613,2.83186,3531.3,3530.5,2.83245]
[1721613837809,2.83192,3531.2,3530.5,2.83245]
[1721613838813,2.83198,3531.1,3530.4,2.4027]
[1721613839015,2.83198,3531.1,3530.4,6.042027]
[1721613840149,2.83186,3531.3,3530.5,2.83245]
[1721613840472,2.8638827,3531.6,3529.9,2.2614]
[1721613840473,2.4502,3531.0,3529.9,2.2614]
[1721613840679,2.8323,3530.7,3529.9,5.09427]
[1721613840952,2.83214,3530.9,3529.9,5.09427]
[1721613840953,2.8324,3530.6,3529.9,5.09432]
[1721613841163,2.8324,3530.6,3529.9,5.887069]
[1721613841678,2.83226,3530.8,3530.0,2.83285]
[1721613841834,5.8890027,3531.3,3530.3,2.83259]
[1721613842044,5.8890027,3531.3,3530.4,0.532029]
[1721613842045,2.83203,3531.1,3530.4,0.532029]
[1721613842223,3.0,3531.0,3530.4,0.532029]
[1721613842553,2.83224,3530.8,3530.1,5.32047]
[1721613843049,2.83223,3530.8,3530.1,5.32045]
[1721613843216,5.83207,3531.0,3530.2,2.86003106]
[1721613843560,2.83219,3530.9,3530.2,2.86003106]
[1721613843715,2.83222,3530.8,3530.2,0.02734106]
[1721613844036,0.04070323,3530.9,3530.2,0.02734106]
[1721613844716,2.83231,3530.7,3530.2,0.02734106]
[1721613846357,5.15481,3530.7,3530.2,0.02734106]
[1721613846656,3.42525832,3530.7,3529.7,5.14088]
[1721613846959,2.83238,3530.6,3530.3,0.02733878]
[1721613847128,2.83238,3530.6,3529.8,2.83298]
[1721613847465,2.83238,3530.6,3529.9,2.83294]
[1721613847625,2.83238,3530.6,3529.9,2.86028789]
[1721613848217,2.8325,3530.5,3529.9,0.02734789]
[1721613848450,2.8325,3530.5,3529.7,5.14088]
[1721613848639,2.8325,3530.5,3530.0,0.02734562]
[1721613848837,2.8325,3530.5,3529.8,2.83301]
[1721613849045,2.8325,3530.5,3530.1,0.02747857]
[1721613849218,2.8325,3530.5,3529.8,2.83301]
[1721613849418,2.8325,3530.5,3530.2,0.02747629]
[1721613849645,2.8325,3530.5,3529.8,2.83301]
[1721613849848,2.8325,3530.5,3530.3,0.02747401]
[1721613850063,2.8325,3530.5,3529.8,2.83301]
[1721613850548,2.8325,3530.5,3529.9,0.02748313]
[1721613852784,5.15484,3530.7,3529.9,2.86041313]
[1721613853095,2.83216,3530.9,3530.1,2.83278]
[1721613853479,2.83216,3530.9,3530.2,0.02750045]
[1721613853795,5.86000427,3531.0,3530.2,0.02750045]
[1721613853796,2.83223,3530.8,3530.2,0.02750045]
[1721613854600,2.83231,3530.7,3530.2,0.02750045]
[1721613855097,2.83231,3530.7,3530.0,2.83286]
[1721613855293,2.83217,3530.9,3530.3,0.02749817]
[1721613855590,3.71817743,3530.9,3530.1,2.83277]
[1721613855773,3.71817743,3530.9,3530.4,0.02749589]
[1721613855977,3.71817743,3530.9,3530.1,2.83277]
[1721613856295,2.83222,3530.8,3530.1,2.83277]
[1721613856493,2.83222,3530.8,3530.2,0.02750045]
[1721613856702,0.88600743,3530.9,3530.2,2.86018045]
[1721613856853,3.88600743,3530.9,3530.2,2.83268]
[1721613857053,3.88600743,3530.9,3530.3,0.02749817]
[1721613857253,6.71814743,3530.9,3530.3,0.02749817]
[1721613857856,5.83214,3530.9,3530.3,0.02749817]
[1721613858168,5.8298741,3530.9,3530.3,0.02749817]
[1721613858687,2.9977341,3530.9,3530.3,2.86010817]
[1721613859708,5.8298741,3530.9,3530.3,0.02749817]
[1721613859905,6.99885294,3530.9,3530.3,0.02749817]
[1721613861505,4.16671294,3530.9,3530.3,0.02749817]
[1721613861663,2.9977341,3530.9,3530.4,2.83247]
[1721613861862,5.25573,3531.3,3530.5,2.8324]
[1721613861863,3.0,3531.2,3530.5,2.8324]
[1721613862060,3.5648324,3531.2,3530.6,2.83236]
[1721613862276,3.5648324,3531.2,3530.6,2.85984007]
[1721613862277,3.0,3531.2,3530.6,2.85984007]
[1721613862979,3.0,3531.5,3530.6,2.85984007]
[1721613863713,2.83182,3531.3,3530.6,2.85984007]
[1721613863883,3.0,3531.2,3530.6,2.85984007]
[1721613864217,3.0,3531.2,3530.6,0.02748007]
[1721613864416,2.83198,3531.1,3530.6,0.02748007]
[1721613864570,2.83198,3531.1,3530.4,2.83253]
[1721613864571,3.0,3531.0,3530.4,2.83253]
[1721613864785,3.0,3531.0,3530.7,0.02747779]
[1721613865000,3.0,3531.0,3530.4,2.83253]
[1721613865232,3.0,3531.0,3530.8,0.02747551]
[1721613865394,3.0,3531.0,3530.5,2.83245]
[1721613865587,5.3376,3531.1,3530.9,0.02747324]
[1721613866032,5.3376,3531.1,3530.5,2.83245]
[1721613866239,3.0,3531.1,3530.5,2.83245]
[1721613866404,3.0,3531.1,3530.6,0.02748007]
[1721613867447,3.0,3531.3,3530.7,2.4523]
[1721613867592,5.83183,3531.3,3530.7,2.4523]
[1721613867792,5.83183,3531.3,3530.8,0.02747551]
[1721613868217,5.83183,3531.3,3530.6,2.83237]
[1721613868430,5.83183,3531.3,3530.9,0.02747324]
[1721613868737,5.83183,3531.3,3530.6,2.83237]
[1721613868896,5.83183,3531.3,3531.0,0.02747096]
[1721613869097,6.64998519,3531.3,3530.6,2.83237]
[1721613869301,6.64998519,3531.3,3530.7,0.02747779]
[1721613870007,2.8319,3531.2,3530.7,0.02747779]
[1721613870209,3.0,3531.1,3530.4,5.2848]
[1721613870529,3.0,3531.1,3530.5,0.02748235]
[1721613872536,3.5924827,3531.1,3530.5,0.02748235]
[1721613873144,0.5924827,3531.0,3530.5,0.02748235]
[1721613874849,0.5924827,3530.9,3530.5,0.02748235]
[1721613876207,0.5924827,3530.8,3530.5,0.02748235]
[1721613877317,0.5924827,3530.7,3530.5,0.02748235]
[1721613877721,0.5924827,3530.6,3530.5,0.02748235]
[1721613877902,0.88609647,3530.6,3530.5,0.02748235]
[1721613878103,0.59388437,3530.6,3530.1,5.14467]
[1721613878316,0.59388437,3530.6,3530.2,2.86015468]
[1721613878613,0.59388437,3530.7,3530.2,2.86015468]
[1721613879203,0.59388437,3530.7,3530.3,2.8326]
[1721613879603,0.59388437,3530.7,3530.4,0.02747012]
[1721613880922,0.59388437,3530.6,3530.4,0.02747012]
[1721613881125,0.59388437,3530.6,3530.3,2.8326]
[1721613881559,0.59388437,3530.6,3530.4,0.02747012]
[1721613881925,0.59388437,3530.6,3530.3,2.8326]
[1721613882159,0.59388437,3530.6,3530.4,0.02747012]
[1721613882326,0.59388437,3530.5,3530.4,0.02747012]
[1721613882521,0.59388437,3530.5,3530.3,2.8326]
[1721613882725,0.59388437,3530.6,3530.4,0.02747012]
[1721613883122,0.59388437,3530.6,3530.3,2.8326]
[1721613883356,0.59388437,3530.6,3530.4,0.02747012]
[1721613883752,0.59388437,3530.6,3530.3,2.8326]
[1721613883976,0.88609647,3530.7,3530.5,0.02746785]
[1721613884128,0.88609647,3530.7,3530.3,2.8326]
[1721613884322,0.88609647,3530.7,3530.4,0.02747012]
[1721613884323,0.59411408,3530.5,3530.4,0.02747012]
[1721613884539,0.59411408,3530.5,3530.3,2.8326]
[1721613885065,0.59411408,3530.5,3530.4,0.02747012]
[1721613885626,0.59411408,3530.5,3530.3,2.8326]
[1721613886073,0.59411408,3530.5,3530.4,0.02746369]
[1721613886426,0.59411408,3530.5,3530.3,2.8326]
[1721613886729,0.59411408,3530.5,3530.4,0.02746207]
[1721613886928,0.59411408,3530.5,3530.3,2.8326]
[1721613887971,0.59411408,3530.5,3530.4,0.02746207]
[1721613888167,0.88609647,3530.6,3530.4,0.02746207]
[1721613888470,0.59422318,3530.5,3530.1,5.14467]
[1721613888632,0.59421381,3530.4,3530.1,5.14467]
[1721613888833,0.59421381,3530.4,3530.2,2.83268]
[1721613889661,0.59421381,3530.5,3530.2,2.83268]
[1721613891274,0.59421381,3530.4,3530.2,2.83268]
[1721613891475,0.59421381,3530.5,3530.2,2.83268]
[1721613891652,0.59421381,3530.5,3530.1,2.3119]
[1721613891653,0.59421381,3530.5,3530.3,2.83262]
[1721613891849,0.59421381,3530.6,3530.3,2.83262]
[1721613892184,0.59421381,3530.6,3530.3,3.77808017]
[1721613892391,1.17403729,3530.9,3530.3,2.83262]
[1721613892392,0.59421381,3530.5,3530.3,2.83262]
[1721613892748,0.59421381,3530.6,3530.3,2.83262]
[1721613893651,0.59421381,3530.5,3530.3,2.83262]
[1721613893848,0.59421381,3530.6,3530.4,0.02747657]
[1721613894270,0.59421381,3530.6,3530.4,2.85999657]
[1721613895564,0.59421381,3530.5,3530.4,2.85999657]
[1721613895891,0.59421381,3530.6,3530.5,5.10695]
[1721613896197,0.59421381,3530.6,3530.5,2.30197429]
[1721613896489,0.88609647,3530.7,3530.5,0.02747429]
[1721613897095,1.17403729,3530.8,3530.5,0.02747429]
[1721613897096,0.88609647,3530.6,3530.5,0.02747429]
[1721613897396,0.88609647,3530.6,3530.3,2.2745]
[1721613897696,0.88609647,3530.6,3530.4,0.0274798]
[1721613897898,0.88609647,3530.6,3530.2,2.83267]
[1721613898194,0.88609647,3530.6,3530.3,0.02745792]
[1721613898195,0.59434048,3530.4,3530.3,0.02745792]
[1721613898522,1.17403729,3530.7,3530.1,2.83276]
[1721613898523,0.88609647,3530.5,3530.1,2.83276]
[1721613898676,0.59436908,3530.3,3530.2,0.02746503]
[1721613899683,0.88609647,3530.4,3530.0,2.2904]
[1721613899861,0.59436656,3530.2,3530.1,0.02748664]
[1721613900262,0.59436656,3530.2,3530.0,2.83286]
[1721613900502,0.59436656,3530.3,3530.1,5.12437308]
[1721613900703,0.59436656,3530.4,3530.1,0.02749308]
[1721613900890,0.59436656,3530.3,3530.1,2.86026308]
[1721613901194,0.59436656,3530.3,3530.1,0.02749308]
[1721613901403,0.88609647,3530.5,3530.1,0.02749308]
[1721613901404,0.59436656,3530.2,3530.1,0.02749308]
[1721613901609,0.59436656,3530.2,3529.8,2.4851]
[1721613901768,0.59436656,3530.2,3530.1,0.02749308]
[1721613901968,0.59436656,3530.2,3529.8,5.31811]
[1721613902178,0.59436656,3530.2,3530.1,0.02749308]
[1721613902362,0.59436656,3530.2,3529.8,6.19249997]
[1721613902564,0.59436656,3530.3,3530.1,0.02749308]
[1721613902865,0.59436656,3530.2,3529.8,6.19249997]
[1721613903279,0.59436656,3530.2,3529.7,2.83309]
[1721613903480,3.71863647,3530.4,3529.7,2.83309]
[1721613903481,0.59436656,3530.1,3529.7,2.83309]
[1721613904391,0.59436656,3530.0,3529.7,2.83309]
[1721613904665,0.59436656,3530.0,3529.5,5.10322]
[1721613905003,0.59436656,3530.0,3529.5,6.07539904]
[1721613905208,0.59436656,3530.0,3529.3,0.1516307]
[1721613905420,0.88609647,3530.2,3529.3,0.1516307]
[1721613905421,0.59436656,3529.7,3529.3,0.1516307]
[1721613905725,0.59436656,3529.6,3529.3,0.1516307]
[1721613906011,3.42770656,3529.4,3529.3,0.1516307]
[1721613906235,4.20335431,3529.4,3529.3,0.1516307]
[1721613906434,4.24405754,3529.4,3529.3,0.1516307]
[1721613906600,3.65278759,3529.4,3529.3,0.1516307]
[1721613907231,9.35287609,3529.4,3529.3,0.1516307]
[1721613907445,8.76212436,3529.4,3529.3,0.1516307]
[1721613908337,9.35249827,3529.4,3529.3,0.1516307]
[1721613908545,8.76212436,3529.4,3529.3,0.1516307]
[1721613909345,9.35184789,3529.4,3529.3,0.1516307]
[1721613909638,11.76212436,3529.4,3529.3,0.1516307]
[1721613910310,12.35149442,3529.4,3529.3,0.1516307]
[1721613911437,11.76212436,3529.4,3529.3,0.1516307]
[1721613911742,12.35149442,3529.4,3529.3,0.1516307]
[1721613912103,12.64822083,3529.4,3529.3,0.1516307]
[1721613912313,14.59546436,3529.4,3529.3,0.1516307]
[1721613912643,14.59546436,3529.4,3527.7,0.08738806]
[1721613912644,2.83445,3528.1,3527.7,0.08738806]
[1721613912860,2.83422,3528.3,3527.7,0.08738806]
[1721613912861,0.04070323,3528.0,3527.7,0.08738806]
[1721613913004,2.87502323,3528.2,3527.8,0.0260449]
[1721613913204,0.28750232,3528.1,3527.8,0.0260449]
[1721613913456,2.83454,3527.9,3527.8,0.0260449]
[1721613913681,2.83454,3527.9,3527.7,0.08738806]
[1721613913682,2.83462,3527.8,3527.7,0.08738806]
[1721613913949,5.70994323,3527.8,3527.7,0.08738806]
[1721613914102,2.87532323,3527.8,3527.7,0.08738806]
[1721613914302,3.71362279,3527.8,3527.7,0.08738806]
[1721613914748,3.71362279,3527.8,3527.7,0.03738806]
[1721613914749,6.54824279,3527.8,3527.7,0.03738806]
[1721613914905,9.54824279,3527.8,3527.7,0.03738806]
[1721613916150,9.50753956,3527.8,3527.7,0.03738806]
[1721613917545,12.34215956,3527.8,3527.7,0.03738806]
[1721613917748,12.34215956,3527.8,3525.7,0.1516307]
[1721613917749,8.08876,3525.8,3525.7,0.1516307]
[1721613918043,8.897636,3525.8,3525.7,0.1516307]
[1721613918252,8.897636,3525.8,3523.9,0.05674145]
[1721613918253,6.225176,3525.8,3523.9,0.05674145]
[1721613918449,3.0,3525.8,3524.2,2.504]
[1721613918605,2.4268,3526.4,3525.3,2.83663]
[1721613918606,3.0,3526.2,3525.3,2.83663]
[1721613918804,5.83594,3526.2,3525.2,2.78664]
[1721613919048,5.83594,3526.2,3525.3,2.83656]
[1721613919256,0.04070323,3526.1,3524.3,2.83742]
[1721613919461,0.04070323,3526.1,3524.7,2.8371]
[1721613919462,2.83616,3525.9,3524.7,2.8371]
[1721613919623,0.58766432,3526.0,3525.0,2.83686]
[1721613919624,2.87695323,3525.8,3525.0,2.83686]
[1721613919948,0.04070323,3525.7,3525.0,2.83686]
[1721613920139,3.42375432,3526.0,3525.1,2.83679]
[1721613920140,3.0,3525.9,3525.1,2.83679]
[1721613920342,3.0,3526.2,3525.3,2.83656]
[1721613920645,3.0,3526.2,3525.3,3.403945]
[1721613920817,3.0,3526.2,3525.3,2.83661]
[1721613921156,3.0,3526.2,3525.6,2.83638]
[1721613921360,2.3627,3527.0,3525.3,2.83657]
[1721613921560,2.3627,3527.0,3526.0,2.83601]
[1721613921730,2.3627,3527.0,3525.8,2.83621]
[1721613921731,5.19797,3527.0,3525.8,2.83621]
[1721613921931,2.83554,3526.7,3525.5,2.8364]
[1721613922132,0.519797,3526.9,3525.6,2.83636]
[1721613922133,2.83543,3526.8,3525.6,2.83636]
[1721613922463,0.56050023,3526.9,3525.2,2.83669]
[1721613922464,2.83601,3526.1,3525.2,2.83669]
[1721613922656,2.83601,3526.1,3525.0,5.12151]
[1721613922657,2.87677323,3526.0,3525.1,2.83679]
[1721613922958,2.83586,3526.3,3525.1,2.83679]
[1721613923119,3.119446,3526.3,3525.4,2.83653]
[1721613923320,3.0,3526.2,3525.4,2.83653]
[1721613923517,3.0,3526.2,3525.8,2.83623]
[1721613923863,6.355177,3526.9,3526.1,2.83599]
[1721613924059,6.355177,3526.9,3526.2,2.8359]
[1721613924060,0.519797,3526.9,3526.2,2.8359]
[1721613924426,7.48,3527.2,3526.3,2.83575]
[1721613924613,2.8352,3527.1,3525.2,3.348789]
[1721613924812,2.8352,3527.1,3525.7,2.83625]
[1721613924813,2.83543,3526.8,3525.7,2.83625]
[1721613925013,2.83553,3526.7,3525.7,2.83625]
[1721613925231,2.83562,3526.6,3525.7,2.83625]
[1721613925447,3.402717,3526.6,3525.7,2.83625]
[1721613925658,0.567097,3526.6,3525.8,2.83623]
[1721613925855,0.567097,3526.6,3526.0,2.83605]
[1721613926039,10.31517,3527.2,3526.3,2.83575]
[1721613926040,13.31511,3527.2,3526.3,2.83575]
[1721613926242,3.0,3527.1,3526.5,2.83563]
[1721613927127,3.0,3527.1,3526.4,2.83573]
[1721613927331,3.0,3527.1,3526.3,2.83582]
[1721613927542,3.0,3527.1,3526.5,2.83559]
[1721613927743,2.83527,3527.0,3526.1,2.83597]
[1721613927949,5.83542,3526.9,3525.9,2.83612]
[1721613928257,5.83542,3526.9,3525.3,0.55]
[1721613928258,2.83553,3526.7,3525.8,2.83616]
[1721613928549,5.83535,3526.9,3525.3,0.55]
[1721613928550,5.83535,3526.9,3525.3,3.38657]
[1721613928771,5.83535,3526.9,3525.4,0.3898719]
[1721613928973,5.83535,3526.9,3525.8,2.83619]
[1721613929134,5.83535,3526.9,3525.8,5.67242]
[1721613929333,5.83535,3526.9,3525.8,2.83619]
[1721613929334,2.83558,3526.7,3525.8,2.83619]
[1721613929868,2.83567,3526.5,3525.6,2.83639]
[1721613930078,0.04070323,3526.8,3526.0,2.83605]
[1721613930261,0.04070323,3526.8,3525.6,0.66128319]
[1721613930461,2.83575,3526.4,3525.6,3.49761319]
[1721613931086,2.87621323,3526.7,3525.9,2.83614]
[1721613931087,2.83551,3526.7,3525.9,2.83614]
[1721613931236,2.83551,3526.7,3525.6,0.66128319]
[1721613931237,2.83575,3526.4,3525.6,0.66128319]
[1721613931439,2.83575,3526.4,3522.7,1.1608485]
[1721613931440,5.41640323,3526.3,3525.0,2.83687]
[1721613931756,5.41640323,3526.3,3524.5,5.28268]
[1721613931757,10.31578,3526.4,3525.5,2.83646]
[1721613931965,3.0,3526.3,3525.6,2.83639]
[1721613932271,5.83583,3526.3,3525.6,0.0779465]
[1721613932773,2.83602,3526.1,3525.3,2.83661]
[1721613933134,2.87678323,3526.0,3525.4,0.07840281]
[1721613933336,5.83583,3526.3,3525.2,2.83669]
[1721613933561,0.04070323,3526.2,3525.4,2.83654]
[1721613933878,0.04070323,3526.2,3525.3,0.36207562]
[1721613934058,2.836,3526.1,3525.3,3.120299]
[1721613934230,0.04070323,3526.0,3525.4,0.07840281]
[1721613935773,2.87670323,3526.1,3525.4,0.07840281]
[1721613935982,1.65995655,3526.1,3525.4,0.07840281]
[1721613936351,1.65995655,3526.1,3525.0,2.83687]
[1721613936567,1.65995655,3526.1,3525.1,0.0784207]
[1721613936855,1.65995655,3526.1,3525.4,2.83654]
[1721613937196,5.8359,3526.3,3525.5,0.07840545]
[1721613937554,5.8359,3526.3,3525.4,2.83654]
[1721613937785,2.83592,3526.2,3525.4,2.83654]
[1721613938198,0.04070323,3526.1,3525.4,2.83654]